Cogmind - Beta 15 @@@ ROGUE MODE // 2025.06.30 @ 15:53:31 Player: Fleshy Vegetable Bird Result: Destroyed by P-80 Master with Gamma Rifle Performance ------------- Evolutions (8) 4000 Regions Visited (24) 4800 Robots Destroyed (316) 1580 Value Destroyed (10305) 10305 Prototype IDs (81) 1620 Alien Tech Used (2) 400 Bonus (3257) 3257 TOTAL SCORE: 25962 Bonus ------- High Alert Combat Kills 19 Follower Combat Kills 284 Registered with UFD 300 Met Optimus in HQ 500 Met Data Miner 300 Met Zhirov 300 Met Warlord at Base 500 MAIN.C Attacked Warlord 500 Warlord Defense Kills 656 Friendly Fire -102 Cogmind --------- Core Integrity 0/1450 Matter 299/300 Energy 100/100 System Corruption 12% Temperature Cool (0) Movement Core (50) Location -2/Research Parts ------- > --- POWER (2) -------- (None) > --- PROPULSION (7) --- (None) > --- UTILITY (12) ----- Advanced Signal Interpreter Surveybot 17 Chip Experimental Core Analyzer Improved Armor Integrity Analyzer Improved Hacking Suite > --- WEAPON (3) ------- (None) > --- INVENTORY (5) ---- Light Quantum Reactor Experimental Matter Compressor (446) Improved Weapon Shielding Mapping Drone Bay (3/3) Railgun Peak State ------------ > --- POWER ------------ Vortex Chain Reactor > --- PROPULSION ------- Improved Heavy Treads Improved Heavy Treads Wheel Centrium Wheel > --- UTILITY ---------- Experimental Cooling System Huge Storage Unit Advanced Signal Interpreter Surveybot 17 Chip Experimental Target Analyzer Layered Heavy Armor Plating Thermal Shield Advanced Force Field Improved Hacking Suite Improved System Restoration Module > --- WEAPON ----------- Hypervelocity Railgun Compact Mass Driver Compact Mass Driver > --- INVENTORY -------- Advanced Power Amplifier High-capacity Storage Unit Experimental Matter Compressor Deep Structural Scanner Experimental Sensor Array Experimental Terrain Scanner Improved Armor Integrity Analyzer Advanced Recoil Stabilizer Weapon Cycler Experimental Cloaking Device Improved Weapon Shielding Heavy Reflective Plating Advanced Force Field Advanced System Shield Mapping Drone Bay Vortex Shotgun Vortex Shotgun Nova Cannon CPS Tube RU-N14's Throwing Claymores v3 Chainsword Vortex Trap [Rating: 161] Favorites ----------- Power Neutrino Core Engine Heavy Ion Engine Power Core Neutrino Core Reactor Vortex Chain Reactor Propulsion Wheel Treads Improved Treads Leg Myomer Leg Wheel Wheel Hover Unit Aerolev Unit Flight Unit Cooled VTOL Module Utility Huge Storage Unit Device Experimental Sensor Array Storage Huge Storage Unit Processor Advanced Signal Interpreter Hackware Hacking Suite Protection Layered Heavy Armor Plating Weapon Improved Assault Rifle Energy Gun Force Rifle Energy Cannon Advanced Beam Cannon Ballistic Gun Improved Assault Rifle Ballistic Cannon Hardcell Cannon Launcher Grenade Launcher Special Weapon CPS Tube Impact Weapon Heavy Mace Slashing Weapon Chainsword Piercing Weapon Force Lance Build | -11 -10 -9 -9 -8 -8 -8 -8 -6 -6 -6 -6 -5 -5 -5 -5 -5 -4 -4 -4 -4 -4 -3 -3 -2 ------- Run | Yrd Mat Mat Min Mat Sto Rec Scr Fac Low Low Dat Pro Fac Upp Upp Zhi Pro Fac Upp Upp War Pro Res Res Slots Evolved 16 | . . 2 . 2 . . . 4 . . . . 2 . . . . 2 . . . . 2 2 Power 1 | . . . . . . . . . . . . . 1 . . . . . . . . . . . Propulsion 4 | . . 1 . . . . . 2 . . . . . . . . . . . . . . . 1 Utility 10 | . . . . 2 . . . 2 . . . . 1 . . . . 2 . . . . 2 1 Weapon 1 | . . 1 . . . . . . . . . . . . . . . . . . . . . . Parts Attached 268 | 10 7 29 14 13 22 1 5 31 6 1 . 1 18 2 1 6 17 27 3 2 15 1 32 4 Power 21 | 2 1 1 . 1 1 1 . 1 1 1 . . 3 . . 1 2 1 . 1 1 . 1 1 Engine 9 | 2 1 1 . 1 1 1 . . . 1 . . 1 . . . . . . . . . . . Core 8 | . . . . . . . . 1 1 . . . 2 . . . 2 1 . 1 . . . . Reactor 4 | . . . . . . . . . . . . . . . . 1 . . . . 1 . 1 1 Propulsion 88 | 4 2 10 9 4 11 . 3 8 2 . . . 5 1 1 1 5 6 . . 3 1 12 . Treads 26 | 1 . 4 1 3 3 . . 3 2 . . . 1 1 1 . 2 3 . . . . 1 . Leg 5 | . . . . . . . . . . . . . . . . 1 1 . . . 1 . 2 . Wheel 49 | 3 2 6 8 1 6 . 3 3 . . . . 3 . . . 2 3 . . . 1 8 . Hover 4 | . . . . . 1 . . 1 . . . . . . . . . . . . 1 . 1 . Flight 4 | . . . . . 1 . . 1 . . . . 1 . . . . . . . 1 . . . Utility 93 | 2 2 7 3 5 4 . 2 9 3 . . . 8 1 . 4 8 12 3 1 5 . 12 2 Device 38 | 1 . 1 3 2 1 . 1 3 1 . . . 4 . . 2 4 4 2 1 4 . 4 . Storage 9 | 1 2 2 . 1 . . . . . . . . . . . 1 . 1 . . . . 1 . Processor 14 | . . . . . 1 . . 2 1 . . . 1 1 . . . 3 1 . 1 . 2 1 Hackware 6 | . . . . . . . . 1 . . . . 1 . . . . . . . . . 3 1 Protection 26 | . . 4 . 2 2 . 1 3 1 . . . 2 . . 1 4 4 . . . . 2 . Artifact . | . . . . . . . . . . . . . . . . . . . . . . . . . Weapon 66 | 2 2 11 2 3 6 . . 13 . . . 1 2 . . . 2 8 . . 6 . 7 1 Energy Gun 7 | 1 . 2 . . 1 . . 1 . . . . . . . . . . . . 1 . . 1 Energy Cannon 8 | . . 1 . . . . . 2 . . . 1 . . . . . . . . 2 . 2 . Ballistic Gun 29 | 1 2 7 1 3 2 . . 6 . . . . 2 . . . 1 3 . . . . 1 . Ballistic Cannon 7 | . . . . . . . . . . . . . . . . . . 2 . . 2 . 3 . Launcher 5 | . . 1 1 . 1 . . 2 . . . . . . . . . . . . . . . . Special Weapon 3 | . . . . . . . . . . . . . . . . . 1 . . . 1 . 1 . Impact Weapon 1 | . . . . . 1 . . . . . . . . . . . . . . . . . . . Slashing Weapon 5 | . . . . . 1 . . 2 . . . . . . . . . 2 . . . . . . Piercing Weapon 1 | . . . . . . . . . . . . . . . . . . 1 . . . . . . Special Melee Weapon . | . . . . . . . . . . . . . . . . . . . . . . . . . Unidentified Prototypes 42 | . . 5 2 . 4 . . 6 1 . . . 1 . . 6 1 1 . . 12 . 2 1 Parts Lost 83 | . 3 . 6 1 2 . . 8 . . . . 4 . 1 . 16 1 . 3 . . 24 14 Power 6 | . . . . . . . . . . . . . . . . . 2 . . . . . 2 2 Propulsion 27 | . 2 . 3 . . . . 3 . . . . 1 . . . 6 . . . . . 10 2 Utility 36 | . . . 2 1 1 . . 3 . . . . 2 . 1 . 5 1 . 3 . . 11 6 Weapon 14 | . 1 . 1 . 1 . . 2 . . . . 1 . . . 3 . . . . . 1 4 Highest Loss Streak 14 | . 3 . 2 1 2 . . 3 . . . . 1 . 1 . 13 1 . 3 . . 8 14 To Critical Strikes 2 | . . . . . . . . . . . . . . . . . . . . . . . 2 . Average Backups 20 | 2 10 14 19 19 19 21 19 21 23 24 24 23 23 23 23 23 21 20 20 20 21 22 20 11 Power . | . 1 1 1 1 1 1 1 1 1 2 2 2 . . . . . . . . . . . . Propulsion 2 | 1 3 3 3 4 4 4 4 3 2 2 2 2 2 2 3 3 2 1 . 1 1 1 1 . Utility 12 | . 1 4 5 6 8 10 10 14 14 14 14 13 16 17 16 17 16 16 17 15 15 16 13 4 Weapon 3 | . 4 4 8 6 4 4 2 1 4 5 5 5 3 3 3 2 2 1 2 2 4 4 5 4 Tool/Special . | . . . . . . . . . . . . . . . . . . . . . . . . . Unused Backups 36 | . . 4 1 1 3 1 4 2 . 1 . . 1 . . 1 . 1 2 . 4 . . 10 Power 3 | . . 1 . . . . . 1 . . . . . . . . . . . . . . . 1 Propulsion 7 | . . 2 1 1 . . 2 . . . . . . . . . . . . . . . . 1 Utility 13 | . . 1 . . 1 1 1 . . 1 . . 1 . . 1 . . 2 . 1 . . 3 Weapon 11 | . . . . . 2 . . 1 . . . . . . . . . 1 . . 3 . . 4 Tool/Special 2 | . . . . . . . 1 . . . . . . . . . . . . . . . . 1 Average Slot Usage (%) 91 | . 99 99 89 98 99 100 80 89 87 93 80 93 96 100 100 84 88 92 89 89 87 85 84 46 Engine 3 | . 13 11 11 9 9 9 6 3 . . . . 4 . . . . . . . . . . . Core 3 | . . . . . . . . 2 6 5 6 6 5 11 11 7 6 10 10 10 5 . . . Treads 8 | . . 8 11 10 9 9 4 12 11 12 12 12 11 16 16 16 13 6 5 5 5 5 4 1 Wheel 18 | . 27 24 20 16 17 18 22 17 18 17 18 18 17 16 15 16 9 17 19 20 19 20 14 4 Device 12 | . 14 9 2 19 17 9 7 10 5 11 12 12 10 16 19 21 15 14 13 15 17 15 16 6 Storage 6 | . 14 11 11 9 9 9 8 6 6 6 6 6 5 5 5 5 5 5 5 5 5 5 4 2 Processor 7 | . . . . . . . . 5 6 6 6 6 11 11 11 11 11 16 15 14 12 15 15 15 Hackware 1 | . . . . . . . . 5 6 6 6 6 5 . . . . . . . . . 3 6 Protection 5 | . . 1 . 6 8 17 12 3 6 6 6 6 5 5 1 . 6 6 5 5 5 5 3 . Energy Cannon 1 | . . 8 2 . . . . . 3 . . . . . . . . . . . . . 1 . Ballistic Gun 13 | . 26 21 22 26 24 26 16 13 7 15 5 16 10 10 11 1 10 9 10 10 2 . . . Ballistic Cannon 1 | . . . . . . . . . . . . . . . . . . 1 2 1 11 12 6 4 Slashing Weapon 2 | . . . . . 1 . 1 4 1 2 . . 3 2 1 . 2 3 2 3 1 2 3 2 Peak Build Rating 161 | 7 11 21 27 32 38 38 40 75 78 78 78 78 88 89 92 94 94 128 128 130 146 147 161 133 Average Rating 75 | 5 10 17 19 29 33 33 29 62 75 76 64 77 82 86 90 75 82 116 125 127 137 145 149 84 On Entrance 72 | . 7 8 21 20 31 38 34 40 74 77 78 78 76 86 89 92 94 90 122 128 130 143 144 102 Naked Turns . | . . . . . . . . . . . . . . . . . . . . . . . . . Heaviest Build 191 | 15 34 99 66 61 69 117 117 147 144 136 117 123 157 147 139 134 169 186 172 172 191 170 185 128 Greatest Support 80 | 20 20 40 40 63 40 20 34 52 46 46 46 46 46 34 71 26 74 52 52 52 52 52 80 32 Greatest Overweight (x) 15 | 2 3 4 5 3 6 5 5 5 3 3 3 3 13 5 5 7 12 9 8 3 4 3 15 7 Average Overweight (x) 3 | . . 1 2 1 3 4 3 2 2 2 2 2 3 4 3 4 4 3 2 2 3 3 3 . Largest Inventory Capacity 25 | 8 15 25 20 20 20 25 25 25 25 25 25 25 25 25 25 25 25 25 25 25 25 25 25 25 Average Capacity 23 | 7 12 16 20 20 20 23 24 25 25 25 25 25 25 25 25 25 25 25 25 25 25 25 25 15 Most Carried 25 | 6 12 20 20 20 20 24 25 25 25 25 25 25 25 25 25 25 25 25 25 25 25 25 25 19 Average Carried 21 | 2 10 14 19 19 19 21 19 23 24 25 24 24 24 24 24 24 22 24 24 23 24 25 22 11 Final Capacity 25 | 8 15 20 20 20 20 25 25 25 25 25 25 25 25 25 25 25 25 25 25 25 25 25 25 5 Final Carried 25 | 6 10 20 20 20 20 24 25 25 25 25 25 25 25 25 25 25 22 25 25 25 25 25 20 5 Class Distribution -------------------- 13% | Scavenger-Assassin 13% | Scavenger-Gunner 12% | Scavenger-Tank 11% | Scavenger-Mutant 10% | Mutant 6% | Gunner 6% | Scavenger-Skirmisher 5% | Skirmisher 5% | Derelict-Scrapper 4% | Assassin 3% | Scrapper 3% | Tank Dominant Class ---------------- Mutant | -10/Materials Scavenger-Gunner | -9/Materials Gunner | -9/Mines Scavenger-Gunner | -8/Materials Scavenger-Gunner | -8/Storage Scavenger-Tank | -8/Recycling Scavenger-Tank | -8/Scraptown Derelict-Scrapper | -6/Factory Skirmisher | -6/Lower Caves Scavenger-Mutant | -6/Lower Caves Mutant | -6/Data Miner Skirmisher | -5/Proximity Caves Scavenger-Assassin | -5/Factory Scavenger-Mutant | -5/Upper Caves Scavenger-Gunner | -5/Upper Caves Scavenger-Mutant | -5/Zhirov Scavenger-Mutant | -4/Proximity Caves Scavenger-Assassin | -4/Factory Scavenger-Assassin | -4/Upper Caves Scavenger-Assassin | -4/Upper Caves Tank | -4/Warlord Assassin | -3/Proximity Caves Scavenger-Mutant | -3/Research Mutant | -2/Research Resources | -11 -10 -9 -9 -8 -8 -8 -8 -6 -6 -6 -6 -5 -5 -5 -5 -5 -4 -4 -4 -4 -4 -3 -3 -2 ----------- Run | Yrd Mat Mat Min Mat Sto Rec Scr Fac Low Low Dat Pro Fac Upp Upp Zhi Pro Fac Upp Upp War Pro Res Res Matter Collected 13775 | 327 218 1291 728 613 1206 270 130 1034 321 254 50 44 1214 253 301 76 989 570 709 367 593 107 1933 177 Remotely . | . . . . . . . . . . . . . . . . . . . . . . . . . Salvage Created 13941 | 193 163 1414 491 895 1738 150 . 2020 121 72 . 25 1517 288 204 76 1148 613 312 415 136 37 1862 51 Parts 723 | 14 13 106 33 46 105 4 . 96 7 1 . . 76 13 16 3 48 33 7 13 5 4 79 1 Haulers Intercepted 22 | . 2 6 . 5 6 . . 1 . . . . . . . . 1 . . . . . 1 . Recyclers Shooed 14 | . . . 1 2 1 . . 2 . . . . 2 . . . . . . . . . 6 . Parts Field Recycled 7 | . . . . . . . . . . . . . . . . 7 . . . . . . . . Retrieved Matter 274 | . . . . . . . . . . . . . . . . 274 . . . . . . . . Parts Self-Destructed 78 | . . . . . . . . . 2 1 . . . 2 9 3 39 . 6 13 . 3 . . Prevented . | . . . . . . . . . . . . . . . . . . . . . . . . . Kills | -11 -10 -9 -9 -8 -8 -8 -8 -6 -6 -6 -6 -5 -5 -5 -5 -5 -4 -4 -4 -4 -4 -3 -3 -2 ------- Run | Yrd Mat Mat Min Mat Sto Rec Scr Fac Low Low Dat Pro Fac Upp Upp Zhi Pro Fac Upp Upp War Pro Res Res Combat Hostiles Destroyed 208 | . 1 30 30 8 23 1 . 17 1 1 . . 18 2 7 . 20 5 3 9 6 . 25 1 Melee 8 | . . . . . 1 . . 6 . . . . . . . . . . . 1 . . . . Guns 107 | . 1 10 11 8 22 1 . 10 . 1 . . 17 . 3 . 12 5 1 3 . . 1 1 Cannons 47 | . . 10 3 . . . . 1 1 . . . 1 . . . . . 2 5 6 . 18 . AOE 43 | . . 9 16 . . . . . . . . . . 2 4 . 8 . . . . . 4 . Classes Destroyed 23 | 3 4 3 2 1 1 . . 1 1 . . . . . . . 3 . . . 2 1 . 1 Worker 29 | 1 . 4 3 . 3 . . 3 . . . . 7 . . . . 3 . . . . 5 . Builder 11 | . 1 . 1 1 4 . . . . . . . 1 . . . . 1 . . . . 2 . Tunneler 12 | 4 1 2 . . . . . 3 . . . . . . . . . . . . . . 2 . Hauler 22 | . 2 6 . 5 6 . . 1 . . . . . . . . 1 . . . . . 1 . Recycler 27 | 1 . 2 2 2 3 1 . 8 . . . . 3 . . . . 1 . . . . 4 . Minesweeper 1 | . . . . . . . . . . . . . . . . . . . . . . 1 . . Mechanic 3 | . . . . . 1 . . . . . . . 1 . . . . 1 . . . . . . Operator 7 | . . 2 . . 1 . . . . . . . 1 . . . . . . . . . 3 . Drone 1 | . . . . . . . . . . . . . . . . . 1 . . . . . . . Watcher 11 | . 1 4 . 2 1 . . 1 . . . . 1 . . . . 1 . . . . . . Swarmer 55 | . . 12 11 . 6 . . 5 . . . . 4 . 6 . 6 . . 4 1 . . . Saboteur 3 | . . . . . . . . . . . . . . . . . . . . . 3 . . . Grunt 39 | . 1 10 . 4 6 . . 3 . . . . . . . . 8 . . 2 . . 5 . Brawler 1 | . . . . . . . . . . . . . . . . . 1 . . . . . . . Duelist 5 | . . . . . . . . . . . . . . . . . 3 . . 2 . . . . Sentry 37 | . . 8 . 2 10 1 . 2 1 1 . . 3 . 1 . 2 3 . 1 . . 2 . Demolisher 1 | . . . 1 . . . . . . . . . . . . . . . . . . . . . Specialist 1 | . . . . . . . . . . . . . . . . . . . . . . . . 1 Hunter 20 | . . . . 2 1 . . 2 . . . . 2 . . . 2 . 2 . . . 9 . Programmer 28 | . . . . . . . . 5 . . . . 9 2 . . . 2 1 . . . 9 . Executioner 2 | . . . . . . . . . . . . . . . . . . . . . 2 . . . Decomposer 4 | . . . . . . . . . . . . 1 . 3 . . . . . . . . . . Samaritan 5 | . . . . . . . . . 1 . . . . 3 1 . . . . . . . . . Assembled 18 | . . . 18 . . . . . . . . . . . . . . . . . . . . . Best Kill Streak 16 | 3 3 8 16 7 6 1 . 7 1 1 . . 4 2 4 . 7 3 2 8 2 1 13 1 Combat Bots Only 15 | . 1 4 15 2 4 1 . 3 1 1 . . 4 2 4 . 7 1 2 8 2 . 9 1 Max Kills in Single Turn 4 | 1 2 3 4 2 2 1 . 1 1 1 . 1 2 2 2 . 3 1 1 1 2 1 4 1 Gunslinging 1 | . . . . . 1 . . . . . . . 1 . . . 1 . . . . . . . Exploded 4 | . . 2 4 . . . . . . . . . . 2 2 . 3 . . . . . 2 . Melee 1 | . . . . . 1 . . 1 . . . . . . . . . . . 1 . . . . Uniques/NPCs Destroyed . | . . . . . . . . . . . . . . . . . . . . . . . . . Combat | -11 -10 -9 -9 -8 -8 -8 -8 -6 -6 -6 -6 -5 -5 -5 -5 -5 -4 -4 -4 -4 -4 -3 -3 -2 -------- Run | Yrd Mat Mat Min Mat Sto Rec Scr Fac Low Low Dat Pro Fac Upp Upp Zhi Pro Fac Upp Upp War Pro Res Res Hostile Shots Fired 2010 | . 64 81 66 35 72 . . 285 9 27 . . 152 14 25 . 150 34 30 109 40 4 701 112 Missed 592 | . 22 20 16 10 20 . . 81 3 13 . . 45 3 10 . 44 12 5 13 13 2 230 30 Hits 1418 | . 42 61 50 25 52 . . 204 6 14 . . 107 11 15 . 106 22 25 96 27 2 471 82 Melee 39 | . . . 5 . . . . . . . . . . . . . 24 . . 10 . . . . Projectile 1379 | . 42 61 45 25 52 . . 204 6 14 . . 107 11 15 . 82 22 25 86 27 2 471 82 AOE 15 | . . . 10 . . . . 3 . . . . . . . . . . . . 2 . . . Critical Strikes 59 | . . . 1 2 4 . . 5 . . . . 5 2 1 . 6 3 . 5 1 . 21 3 Actively Blocked 1 | . . . . . . . . . . . . . . . . . . . . . . . 1 . Part Disruptions 1 | . . . . . . . . . . . . . . . . . . . . . . . 1 . Damage Taken 21447 | . 410 689 969 381 778 . . 2937 45 92 . . 1763 329 178 . 2065 396 209 1478 438 39 5948 2303 Core 3816 | . 90 117 149 49 70 . . 125 . . . . 141 117 . . 165 20 . 16 39 . 1248 1470 Absorbed by Shields 4388 | . . . 58 . . . . . . . . . 413 116 66 . 158 56 99 362 450 . 2602 8 Reduced by Siege Mode 182 | . . . . . . . . . . . . . . . . . . . 16 65 . . 101 . Redirected to Shielding 30 | . . . . . . . . . . . . . . . . . . . . . . . 30 . Ignored by Resistances 1359 | . . . . 4 . . . 278 6 16 . . 206 . 43 . 257 35 128 165 . . 221 . Regen/Repaired (Parts) 1182 | . . . . 105 249 . . 138 . . . . 123 . . . . . . . 146 . . 421 Core Remaining (%) 64 | 100 64 . 33 . . . 78 . . . . 85 . . . . 57 . . . . 93 4 . Volleys Fired 690 | 24 17 87 52 50 76 2 . 59 3 4 . 5 78 8 20 . 40 23 10 15 23 . 90 4 Largest 3 | 2 2 3 3 3 3 3 . 3 3 3 . 1 3 3 3 . 3 3 3 3 3 . 3 2 Hottest 223 | 70 70 121 114 74 74 74 . 156 185 63 . 90 176 91 81 . 146 121 121 121 161 . 223 120 Shots Fired 1656 | 48 34 206 127 150 215 6 . 134 6 12 . 5 175 13 36 . 103 54 30 45 69 . 183 5 Gun 1217 | 48 34 122 98 150 215 6 . 115 4 12 . 1 166 12 33 . 94 43 21 30 . . 8 5 Cannon 388 | . . 70 12 . . . . 19 2 . . 4 7 . . . . 11 9 15 69 . 170 . Launcher 45 | . . 14 17 . . . . . . . . . 2 1 3 . 8 . . . . . . . Special 6 | . . . . . . . . . . . . . . . . . 1 . . . . . 5 . Kinetic 1310 | 24 33 120 98 150 215 6 . 115 1 12 . 1 120 6 24 . 74 54 30 45 69 . 113 . Thermal 281 | 24 1 72 12 . . . . 19 5 . . 2 46 6 9 . 20 . . . . . 65 . Explosive 48 | . . 14 15 . . . . . . . . . 2 1 3 . 8 . . . . . 5 . Electromagnetic 11 | . . . 2 . . . . . . . . 2 7 . . . . . . . . . . . Entropic 5 | . . . . . . . . . . . . . . . . . . . . . . . . 5 Robot Hit Streak 48 | 7 7 28 18 12 48 9 . 12 9 5 . . 10 5 7 . 16 9 7 13 6 . 15 6 Robot Miss Streak 6 | 3 5 6 4 3 3 . . 4 . 2 . . 5 1 3 . 3 3 1 4 3 . 4 2 Penetration Max 1 | . . . . 1 1 . . 1 . . . . 1 . . . 1 . . 1 . . 1 . Secondary Targets 13 | . . . . 2 2 . . 1 . . . . 5 . . . 3 . . . . . . . Max Gunslinging Chain 2 | . . . . 1 1 . . 1 . . . . 1 . . . 2 . . . . . . . Shots Hit Robots 1148 | 33 25 122 72 102 159 6 . 117 6 6 . 1 118 15 24 2 69 43 28 29 30 1 135 5 Core Hits 540 | 7 9 67 63 33 60 3 . 50 3 1 . 1 52 8 11 . 60 14 10 16 6 1 63 2 Critical Kills 15 | . . 1 . . 1 . . 1 . 1 . . 3 . . . 1 4 . . . . 3 . Critical Parts Destroyed 15 | . . . 1 . 1 . . 1 . . . . 2 1 . . 6 1 1 . . . 1 . Critical Strikes 70 | 2 . 1 2 . 2 . . 10 . 1 . . 5 1 . . 8 8 1 1 8 . 20 . Burn 2 | 2 . . . . . . . . . . . . . . . . . . . . . . . . Meltdown 3 | . . 1 . . . . . . . . . . . . . . . . . . . . 2 . Destroy 30 | . . . 2 . 2 . . 2 . 1 . . 5 1 . . 8 6 1 . . . 2 . Blast 22 | . . . . . . . . . . . . . . . . . . 2 . 1 8 . 11 . Sever 13 | . . . . . . . . 8 . . . . . . . . . . . . . . 5 . Melee Attacks 302 | . . . . . 24 . . 82 1 1 . 3 63 9 . 2 5 35 8 2 . 4 62 1 Impact 16 | . . . . . 16 . . . . . . . . . . . . . . . . . . . Slashing 284 | . . . . . 8 . . 82 1 1 . 3 63 9 . 2 5 33 8 2 . 4 62 1 Piercing 2 | . . . . . . . . . . . . . . . . . . 2 . . . . . . Sneak Attacks 70 | . . . . . 7 . . 15 . . . 1 12 6 . . 5 9 . . . 1 14 . Combat Hostiles . | . . . . . . . . . . . . . . . . . . . . . . . . . Follow-up Attacks . | . . . . . . . . . . . . . . . . . . . . . . . . . Damage Inflicted 38100 | 425 397 2921 1898 1580 3129 98 . 3517 172 114 . 65 4405 828 1030 223 4275 1648 789 964 1128 64 8142 288 Guns 15401 | 425 397 1168 824 1580 2491 98 . 1214 103 114 . . 2736 243 550 . 1546 633 335 631 . . 34 279 Cannons 7903 | . . 945 171 . . . . 210 69 . . . 114 . . . . 255 162 297 1128 . 4552 . Explosions 7233 | . . 808 903 . . . . 113 . . . . 523 103 480 . 2351 . . . . . 1952 . Melee 7349 | . . . . . 638 . . 1980 . . . 65 1032 482 . 223 378 760 292 36 . 64 1399 . Ramming 9 | . . . . . . . . . . . . . . . . . . . . . . . . 9 Kinetic 17728 | 225 385 1150 824 1580 2491 98 . 1214 27 114 . . 1989 122 409 . 1183 888 497 928 1128 . 2476 . Thermal 5183 | 200 12 963 171 . . . . 210 145 . . . 747 121 141 . 363 . . . . . 2110 . Explosive 7079 | . . 808 839 . . . . 113 . . . . 433 103 480 . 2351 . . . . . 1952 . Electromagnetic 268 | . . . 64 . . . . . . . . . 204 . . . . . . . . . . . Impact 344 | . . . . . 344 . . . . . . . . . . . . . . . . . . . Slashing 7210 | . . . . . 294 . . 1980 . . . 65 1032 482 . 223 378 760 292 36 . 64 1604 . Piercing . | . . . . . . . . . . . . . . . . . . . . . . . . . Entropic 279 | . . . . . . . . . . . . . . . . . . . . . . . . 279 Highest Corruption 12 | . 3 5 5 . . . . 6 6 6 6 6 5 6 6 6 6 2 3 3 3 . 8 12 Average Corruption 4 | . 2 4 5 . . . . 4 6 6 6 6 2 5 6 6 6 1 2 3 3 . 3 8 Corruption Purged 5 | . . . . . . . . . . . . . 4 . . . . . . . . . 1 . Corruption Blocked 4 | . . . . . . . . . 4 . . . . . . . . . . . . . . . Effects 306 | . 2 2 20 . . . . 39 19 6 1 13 31 19 14 9 48 8 20 27 3 . 22 3 Message Errors 79 | . . 1 6 . . . . 11 5 3 . 4 9 4 5 2 11 1 5 7 . . 4 1 Matter Fused 74 | . . . 4 . . . . 10 5 1 . 6 6 6 8 1 14 . 5 6 . . 2 . Heat Flow Errors 27 | . 1 . . . . . . 2 2 . . 1 1 2 . 2 3 1 3 5 . . 4 . Energy Discharges 35 | . 1 . 1 . . . . 4 3 . 1 . 5 4 . 1 4 1 2 3 1 . 4 . Parts Rejected 5 | . . . 1 . . . . 2 . . . . . . . . 2 . . . . . . . Parts Fused 1 | . . . . . . . . . . . . . . . . . . . . . . . 1 . Data Loss (minor) 37 | . . . 2 . . . . 4 2 1 . 1 4 . . 2 7 3 2 4 1 . 3 1 Data Loss (major) 16 | . . . 1 . . . . . 1 . . . 3 2 1 1 3 . 2 1 . . . 1 Misfires 13 | . . 1 1 . . . . 3 . . . . 1 1 . . 2 1 1 1 . . 1 . Alerts 7 | . . . 2 . . . . 1 . 1 . 1 1 . . . . . . . 1 . . . Weapon Failures 12 | . . . 2 . . . . 2 1 . . . 1 . . . 2 1 . . . . 3 . Overload Shots 2 | . . . . . . . . 2 . . . . . . . . . . . . . . . . Overflow Damage 2072 | . . 18 5 . 300 . . 72 . . . . 316 208 53 189 130 156 7 3 43 . 572 . Projectiles 373 | . . 8 3 . . . . . . . . . . . . . . . . 3 43 . 316 . Explosions 296 | . . 10 2 . 31 . . . . . . . 70 . 53 . 47 . . . . . 83 . Melee 1403 | . . . . . 269 . . 72 . . . . 246 208 . 189 83 156 7 . . . 173 . Knockbacks 48 | . . . . . . . . . . . . . . . . . . 3 4 1 7 . 33 . Impact . | . . . . . . . . . . . . . . . . . . . . . . . . . Kinetic 42 | . . . . . . . . . . . . . . . . . . 3 4 1 6 . 28 . Secondary 6 | . . . . . . . . . . . . . . . . . . . . . 1 . 5 . Self-Inflicted Damage 662 | . . 5 154 . 96 . . 85 . . . . . 6 . . 312 . . . . . . 4 Shots 20 | . . 1 9 . 2 . . 1 . . . . . 1 . . 6 . . . . . . . Rammed 3 | . . . . . . . . 1 . . . . . . . . . . . . . . . 2 Targets Rammed 3 | . . . . . . . . 1 . . . . . . . . . . . . . . . 2 Kicked . | . . . . . . . . . . . . . . . . . . . . . . . . . Crushed . | . . . . . . . . . . . . . . . . . . . . . . . . . Highest Temperature 730 | 45 253 377 123 142 162 32 . 377 238 46 . 165 398 160 241 272 447 302 472 355 384 . 730 8 Average Temperature 97 | 19 101 80 42 48 40 19 . 139 83 28 . 60 87 56 101 125 139 74 176 128 136 . 173 3 Received Heat Transfer 2084 | . 120 189 14 126 252 . . 360 18 36 . . 86 9 30 . 95 18 . 261 12 9 287 162 Effects 36 | . . . . . . . . 1 . . . . 1 . . 3 5 . 4 1 3 . 18 . Shutdowns 6 | . . . . . . . . . . . . . . . . . 2 . . 1 . . 3 . Energy Bleed 4 | . . . . . . . . . . . . . . . . 1 1 . . . 1 . 1 . Interference 13 | . . . . . . . . . . . . . 1 . . 2 . . 2 . 2 . 6 . Matter Decay 1 | . . . . . . . . 1 . . . . . . . . . . . . . . . . Short Circuit 2 | . . . . . . . . . . . . . . . . . 2 . . . . . . . Damage (minor) 3 | . . . . . . . . . . . . . . . . . . . . . . . 3 . Damage (major) 3 | . . . . . . . . . . . . . . . . . . . 2 . . . 1 . Damage (core) 4 | . . . . . . . . . . . . . . . . . . . . . . . 4 . Siege Activations 6 | . . . . . . . . . . . . . . . . . . 2 2 1 . . 1 . Total Turns 125 | . . . . . . . . . . . . . . . . . . 4 56 36 . . 29 . Longest Duration 44 | . . . . . . . . . . . . . . . . . . 2 44 36 . . 29 . Martial Activations . | . . . . . . . . . . . . . . . . . . . . . . . . . Shielding Activations . | . . . . . . . . . . . . . . . . . . . . . . . . . Robots Disrupted . | . . . . . . . . . . . . . . . . . . . . . . . . . Combat Hostiles . | . . . . . . . . . . . . . . . . . . . . . . . . . Robots Corrupted 1 | . . . . . 1 . . . . . . . . . . . . . . . . . . . Combat Hostiles . | . . . . . . . . . . . . . . . . . . . . . . . . . Parts Fried 3 | . . . . . 3 . . . . . . . . . . . . . . . . . . . Impact Corruptions 4 | . . . . . 3 . . . . . . . . . . . . . . . . . 1 . Robots Melted 3 | . . 1 . . . . . . . . . . . . . . . . . . . . 2 . Combat Hostiles 3 | . . 1 . . . . . . . . . . . . . . . . . . . . 2 . Parts Melted 13 | . . 3 . . . . . . . . . . . . 1 . 3 . . . . . 6 . Heat Transferred 7138 | 740 37 1702 296 . . . . 285 211 . . . 1073 185 222 . 537 . . . . . 1850 . Parts Sabotaged . | . . . . . . . . . . . . . . . . . . . . . . . . . Parts Stolen . | . . . . . . . . . . . . . . . . . . . . . . . . . Parts Stripped . | . . . . . . . . . . . . . . . . . . . . . . . . . Power Chain Reactions . | . . . . . . . . . . . . . . . . . . . . . . . . . Alert | -11 -10 -9 -9 -8 -8 -8 -8 -6 -6 -6 -6 -5 -5 -5 -5 -5 -4 -4 -4 -4 -4 -3 -3 -2 ------- Run | Yrd Mat Mat Min Mat Sto Rec Scr Fac Low Low Dat Pro Fac Upp Upp Zhi Pro Fac Upp Upp War Pro Res Res Maximum Alert Level 2 | . . 2 1 . 2 . . 1 . . . . 1 . . . . 1 . . . . 1 . Low Security (%) 68 | 100 100 30 53 100 17 100 . 87 . . . . 89 . . . . 63 . . . . 68 100 Level 1 29 | . . 60 46 . 75 . . 12 . . . . 10 . . . . 36 . . . . 31 . Level 2 1 | . . 9 . . 6 . . . . . . . . . . . . . . . . . . . Level 3 . | . . . . . . . . . . . . . . . . . . . . . . . . . Level 4 . | . . . . . . . . . . . . . . . . . . . . . . . . . Level 5 . | . . . . . . . . . . . . . . . . . . . . . . . . . High Security . | . . . . . . . . . . . . . . . . . . . . . . . . . Max Security . | . . . . . . . . . . . . . . . . . . . . . . . . . Peak Influence 475 | 10 30 475 294 139 455 95 . 228 . . . . 284 . . . . 346 . . . . 272 115 Initial 346 | . . . 174 35 32 81 . . . . . . . . . . . 346 . . . . . 110 Average 134 | 1 4 248 192 60 268 22 . 104 . . . . 71 . . . . 198 . . . . 96 62 Influence Increases 7869 | 30 96 1150 368 356 1026 105 . 807 25 20 . . 887 50 150 10 522 561 85 205 180 5 1063 168 Destroy 0b10 Robot/C 3900 | . 20 600 240 160 460 80 . 340 20 20 . . 360 40 140 . 440 100 60 180 120 . 500 20 Destroy 0b10 Robot/NC 650 | 30 25 100 30 50 95 5 . 80 5 . . . 70 . . 10 20 35 5 . . 5 85 . Destroy Leader 884 | . 6 170 30 54 164 . . 114 . . . . 112 10 10 . 30 42 20 10 . . 112 . Allied During Kill 40 | . . . . . . 8 . . . . . . . . . . 32 . . . . . . . Trap Triggered on 0b10 30 | . . . . . . . . 20 . . . . . . . . . . . . . . . 10 Successful Hack 227 | . . 32 . 42 35 12 . 4 . . . . 63 . . . . 6 . . . . 33 . Disable Machine 405 | . . 30 . . 150 . . 75 . . . . 90 . . . . 30 . . . . 30 . Destroy Structure 698 | . . 83 68 5 47 . . 54 . . . . 162 . . . . 48 . . . . 228 3 Advance Influence 300 | . . . . . . . . . . . . . . . . . . 300 . . . . . . Partial Spotted 15 | . . . . . . . . 15 . . . . . . . . . . . . . . . . Lose Combat Pursuer 720 | . 45 135 . 45 75 . . 105 . . . . 30 . . . . . . 15 60 . 75 135 Influence Decreases 7754 | 30 96 702 726 369 895 313 . 589 243 20 . . 603 334 150 10 447 521 200 205 132 53 866 250 Entered New Map 896 | . . . 274 55 45 127 . . 82 . . . . 106 . . . 29 43 . . 48 . 87 Time Decay 5306 | 30 96 552 392 309 530 177 . 509 161 20 . . 430 228 140 10 297 482 157 185 132 5 404 60 Lost Part 728 | . . . 60 5 20 . . 80 . . . . 40 . 10 . 150 10 . 20 . . 230 103 Lost Ally 60 | . . . . . . . . . . . . . 60 . . . . . . . . . . . Purge Threat 764 | . . 150 . . 300 9 . . . . . . 73 . . . . . . . . . 232 . Squads Dispatched 61 | . . 2 . . 6 . . 12 . . . . 14 . . . 1 8 . 1 . . 13 4 Investigation 20 | . . . . . . . . 5 . . . . 5 . . . . 5 . . . . 3 2 Extermination 16 | . . . . . . . . 5 . . . . 5 . . . . 2 . . . . 3 1 Reinforcement 15 | . . 2 . . 1 . . 2 . . . . 1 . . . . 1 . . . . 7 1 Assault 4 | . . . . . 2 . . . . . . . . . . . 1 . . 1 . . . . Garrison 6 | . . . . . 3 . . . . . . . 3 . . . . . . . . . . . Intercept . | . . . . . . . . . . . . . . . . . . . . . . . . . Searches Triggered . | . . . . . . . . . . . . . . . . . . . . . . . . . Data Miner Redirects 3 | . . . . . . . . . . . . . 1 . . . . . . . . . . 2 Construction Impeded 4 | . . . . . . . . . . . . . 1 . . . . . . . . . 3 . Haulers Reinforced 2 | . . . . . . . . . . . . . . . . . . 1 . . . . 1 . Active Scanning Responses . | . . . . . . . . . . . . . . . . . . . . . . . . . Cargo Convoy Interrupts . | . . . . . . . . . . . . . . . . . . . . . . . . . Stealth | -11 -10 -9 -9 -8 -8 -8 -8 -6 -6 -6 -6 -5 -5 -5 -5 -5 -4 -4 -4 -4 -4 -3 -3 -2 --------- Run | Yrd Mat Mat Min Mat Sto Rec Scr Fac Low Low Dat Pro Fac Upp Upp Zhi Pro Fac Upp Upp War Pro Res Res Distress Signals 26 | . 1 6 . 3 5 . . 3 . . . . 2 . . . 1 . . . 3 . 2 . Communications Jammed . | . . . . . . . . . . . . . . . . . . . . . . . . . Distress Signals . | . . . . . . . . . . . . . . . . . . . . . . . . . Times Spotted 397 | . 14 59 28 18 33 2 . 39 1 1 . . 34 3 7 . 26 10 3 10 41 3 48 17 Peak Tracking Total 13 | . 7 9 7 4 5 . . 5 1 1 . . 5 2 4 . 8 2 2 9 12 3 10 13 Tactical Retreats 31 | . 2 6 . 1 5 . . 4 . . . . 2 . . . . . . 1 3 . 5 2 Traps | -11 -10 -9 -9 -8 -8 -8 -8 -6 -6 -6 -6 -5 -5 -5 -5 -5 -4 -4 -4 -4 -4 -3 -3 -2 ------- Run | Yrd Mat Mat Min Mat Sto Rec Scr Fac Low Low Dat Pro Fac Upp Upp Zhi Pro Fac Upp Upp War Pro Res Res Traps Triggered 12 | . 5 4 . . 1 . . . . . . . . . . . . 1 . . . . 1 . Indirectly . | . . . . . . . . . . . . . . . . . . . . . . . . . Trap Hack Attempts . | . . . . . . . . . . . . . . . . . . . . . . . . . Triggered . | . . . . . . . . . . . . . . . . . . . . . . . . . Disarmed . | . . . . . . . . . . . . . . . . . . . . . . . . . Reprogrammed . | . . . . . . . . . . . . . . . . . . . . . . . . . Reused 3 | . . . . . . . . 2 . . . . . . . . . . . . . . . 1 Traps Extracted . | . . . . . . . . . . . . . . . . . . . . . . . . . Installed 3 | . . . . . . . . 2 . . . . . . . . . . . . . . . 1 Triggered 3 | . . . . . . . . 2 . . . . . . . . . . . . . . . 1 Most Traps Carried 3 | . . . . . . . 3 3 1 1 1 1 1 1 1 1 1 1 1 1 1 1 1 1 Machines | -11 -10 -9 -9 -8 -8 -8 -8 -6 -6 -6 -6 -5 -5 -5 -5 -5 -4 -4 -4 -4 -4 -3 -3 -2 ---------- Run | Yrd Mat Mat Min Mat Sto Rec Scr Fac Low Low Dat Pro Fac Upp Upp Zhi Pro Fac Upp Upp War Pro Res Res Machines Disabled 29 | . . 2 . . 10 . . 5 . . . . 6 . . . 1 2 . 1 . . 2 . Max in Single Turn 2 | . . 1 . . 2 . . 2 . . . . 2 . . . 1 1 . 1 . . 1 . Garrison Access 2 | . . . . . 1 . . . . . . . 1 . . . . . . . . . . . Machines Repaired . | . . . . . . . . . . . . . . . . . . . . . . . . . Machines Dismantled . | . . . . . . . . . . . . . . . . . . . . . . . . . Machines Sabotaged . | . . . . . . . . . . . . . . . . . . . . . . . . . Overloaded Fab Kills . | . . . . . . . . . . . . . . . . . . . . . . . . . Hacking | -11 -10 -9 -9 -8 -8 -8 -8 -6 -6 -6 -6 -5 -5 -5 -5 -5 -4 -4 -4 -4 -4 -3 -3 -2 --------- Run | Yrd Mat Mat Min Mat Sto Rec Scr Fac Low Low Dat Pro Fac Upp Upp Zhi Pro Fac Upp Upp War Pro Res Res Machines Accessed 98 | . 2 9 1 5 11 10 4 10 1 . 4 . 14 . . 4 . 7 1 . 2 . 10 3 Terminals 42 | . 2 8 . 3 8 6 . 4 . . . . 6 . . . . . . . . . 5 . Fabricators 4 | . . . . . . . . 2 . . . . . . . . . 1 . . . . 1 . Repair Stations 8 | . . . . 1 2 . . . . . . . 2 . . . . 1 . . . . 1 1 Recycling Units 20 | . . . . . . 4 . 3 . . . . 5 . . . . 4 . . . . 2 2 Scanalyzers 3 | . . 1 . 1 . . . . . . . . . . . . . 1 . . . . . . Garrison Access 4 | . . . . . 1 . . 1 . . . . 1 . . . . . . . . . 1 . Total Hacks 319 | . 7 38 1 23 35 29 32 21 1 . 29 . 30 . . 17 . 16 1 . 3 . 27 9 Successful 200 | . 1 21 1 12 23 13 32 8 1 . 29 . 13 . . 17 . 4 1 . 3 . 16 5 Failed 118 | . 6 16 . 11 12 16 . 13 . . . . 17 . . . . 12 . . . . 11 4 Catastrophic 18 | . 2 1 . 1 1 1 . 4 . . . . 3 . . . . 2 . . . . 3 . Database Lockouts 1 | . . 1 . . . . . . . . . . . . . . . . . . . . . . Manual 149 | . 8 27 . 11 13 18 . 17 . . . . 19 . . . . 12 . . 1 . 17 6 Terminals 125 | . 7 32 . 14 18 15 . 9 . . . . 11 . . . . . . . . . 19 . Fabricators 8 | . . . . . . . . 4 . . . . . . . . . 2 . . . . 2 . Repair Stations 31 | . . . . 5 14 . . . . . . . 6 . . . . 1 . . . . 2 3 Recycling Units 49 | . . . . . . 14 . 6 . . . . 11 . . . . 10 . . . . 2 6 Scanalyzers 13 | . . 6 . 4 . . . . . . . . . . . . . 3 . . . . . . Garrison Access 9 | . . . . . 3 . . 2 . . . . 2 . . . . . . . . . 2 . Terminal Hacks 119 | . . 8 1 4 9 4 32 2 1 . 29 . 1 . . 17 . . 1 . 3 . 7 . Record 42 | . . . . . . . 24 . . . 11 . . . . 5 . . . . 2 . . . Part Schematic 15 | . . . . . . . . . . . 10 . . . . 4 . . . . . . 1 . Robot Schematic 5 | . . . . . . . . . . . 5 . . . . . . . . . . . . . Robot Analysis 17 | . . 2 . 1 1 1 7 1 . . . . . . . 4 . . . . . . . . Prototype ID Bank 12 | . . 2 . 1 . 1 . . . . 3 . . . . 4 . . . . . . 1 . Open Door 8 | . . . 1 . 4 . . . 1 . . . . . . . . . 1 . 1 . . . Branch Access Points 3 | . . 2 . 1 . . . . . . . . . . . . . . . . . . . . Terminal Index 1 | . . . . . . 1 . . . . . . . . . . . . . . . . . . Recycling Unit Index 1 | . . . . . . . . . . . . . . . . . . . . . . . 1 . Unreport Threat 7 | . . 1 . . 2 1 . . . . . . 1 . . . . . . . . . 2 . Locate Traps 3 | . . 1 . 1 . . . 1 . . . . . . . . . . . . . . . . Dispatch Records 1 | . . . . . . . . . . . . . . . . . . . . . . . 1 . Surveillance Status 1 | . . . . . . . . . . . . . . . . . . . . . . . 1 . Recall Investigation 1 | . . . . . 1 . . . . . . . . . . . . . . . . . . . Recall Reinforcements 1 | . . . . . 1 . . . . . . . . . . . . . . . . . . . Proto ID Catalog 1 | . . . . . . . 1 . . . . . . . . . . . . . . . . . Fabricator Hacks 2 | . . . . . . . . . . . . . . . . . . . . . . . 2 . Load Schematic 1 | . . . . . . . . . . . . . . . . . . . . . . . 1 . Build 1 | . . . . . . . . . . . . . . . . . . . . . . . 1 . Repair Station Hacks 21 | . . . . 4 11 . . . . . . . 3 . . . . . . . . . . 3 Scan Component 11 | . . . . 2 6 . . . . . . . 2 . . . . . . . . . . 1 Repair 9 | . . . . 2 5 . . . . . . . 1 . . . . . . . . . . 1 Refit 1 | . . . . . . . . . . . . . . . . . . . . . . . . 1 Recycling Unit Hacks 3 | . . . . . . 3 . . . . . . . . . . . . . . . . . . Retrieve Components 3 | . . . . . . 3 . . . . . . . . . . . . . . . . . . Scanalyzer 9 | . . 6 . 1 . . . . . . . . . . . . . 2 . . . . . . Insert Component 5 | . . 3 . 1 . . . . . . . . . . . . . 1 . . . . . . Analyze 4 | . . 3 . . . . . . . . . . . . . . . 1 . . . . . . Garrison Access Hacks 2 | . . . . . 1 . . . . . . . 1 . . . . . . . . . . . Seal Access 2 | . . . . . 1 . . . . . . . 1 . . . . . . . . . . . Unauthorized Hacks 44 | . 1 7 . 3 2 6 . 6 . . . . 8 . . . . 2 . . . . 7 2 Terminals 26 | . 1 7 . 3 1 3 . 3 . . . . 3 . . . . . . . . . 5 . Track 2 | . . . . . . . . . . . . . 1 . . . . . . . . . 1 . Botnet 24 | . 1 7 . 3 1 3 . 3 . . . . 2 . . . . . . . . . 4 . Fabricators . | . . . . . . . . . . . . . . . . . . . . . . . . . Repair Stations 1 | . . . . . 1 . . . . . . . . . . . . . . . . . . . Mechanics 1 | . . . . . 1 . . . . . . . . . . . . . . . . . . . Recycling Units 17 | . . . . . . 3 . 3 . . . . 5 . . . . 2 . . . . 2 2 Monitor 1 | . . . . . . 1 . . . . . . . . . . . . . . . . . . Reject 1 | . . . . . . 1 . . . . . . . . . . . . . . . . . . Mask 1 | . . . . . . 1 . . . . . . . . . . . . . . . . . . Fedlink 14 | . . . . . . . . 3 . . . . 5 . . . . 2 . . . . 2 2 Scanalyzers . | . . . . . . . . . . . . . . . . . . . . . . . . . Garrison Access . | . . . . . . . . . . . . . . . . . . . . . . . . . Data Cores Recovered 1 | . . 1 . . . . . . . . . . . . . . . . . . . . . . Used 1 | . . 1 . . . . . . . . . . . . . . . . . . . . . . Hacking Detections 62 | . 2 8 . 5 7 10 . 7 . . . . 9 . . . . 5 . . . . 8 1 Full Trace Events 6 | . . . . . . . . 2 . . . . . . . . . 3 . . . . 1 . Feedback Events . | . . . . . . . . . . . . . . . . . . . . . . . . . Feedback Blocked . | . . . . . . . . . . . . . . . . . . . . . . . . . Robot Schematics Acquired 5 | . . . . . . . . . . . 5 . . . . . . . . . . . . . Robots Built . | . . . . . . . . . . . . . . . . . . . . . . . . . Authchips . | . . . . . . . . . . . . . . . . . . . . . . . . . Time . | . . . . . . . . . . . . . . . . . . . . . . . . . Total Robot Build Rating . | . . . . . . . . . . . . . . . . . . . . . . . . . Part Schematics Acquired 19 | . . 3 . . . . . . . . 10 . . . . 4 . 1 . . . . 1 . Parts Built 2 | . . . . . . . . . . . . . . . . . . . . . . . 2 . Authchips . | . . . . . . . . . . . . . . . . . . . . . . . . . Time 64 | . . . . . . . . . . . . . . . . . . . . . . . 64 . Total Part Build Rating 16 | . . . . . . . . . . . . . . . . . . . . . . . 16 . Parts Repaired 9 | . . . . 2 5 . . . . . . . 1 . . . . . . . . . . 1 Time 455 | . . . . 168 191 . . . . . . . 22 . . . . . . . . . . 74 Parts Recycled . | . . . . . . . . . . . . . . . . . . . . . . . . . Recycled Matter . | . . . . . . . . . . . . . . . . . . . . . . . . . Retrieved Matter . | . . . . . . . . . . . . . . . . . . . . . . . . . Retrieved Components 7 | . . . . . . 7 . . . . . . . . . . . . . . . . . . Parts Scanalyzed 5 | . . 3 . 1 . . . . . . . . . . . . . 1 . . . . . . Part Schematics Acquired 4 | . . 3 . . . . . . . . . . . . . . . 1 . . . . . . Parts Damaged 1 | . . . . 1 . . . . . . . . . . . . . . . . . . . . Bothacking | -11 -10 -9 -9 -8 -8 -8 -8 -6 -6 -6 -6 -5 -5 -5 -5 -5 -4 -4 -4 -4 -4 -3 -3 -2 ------------ Run | Yrd Mat Mat Min Mat Sto Rec Scr Fac Low Low Dat Pro Fac Upp Upp Zhi Pro Fac Upp Upp War Pro Res Res Used RIF Installer . | . . . . . . . . . . . . . . . . . . . . . . . . . Robots Hacked . | . . . . . . . . . . . . . . . . . . . . . . . . . Non-combat . | . . . . . . . . . . . . . . . . . . . . . . . . . Combat . | . . . . . . . . . . . . . . . . . . . . . . . . . Robot Hacks Applied . | . . . . . . . . . . . . . . . . . . . . . . . . . Relay Couplers Released 3 | . . . . . . . . . . . . . . . . . . . . . . . 3 . Programmers 3 | . . . . . . . . . . . . . . . . . . . . . . . 3 . Fabnet Peak Effective % . | . . . . . . . . . . . . . . . . . . . . . . . . . Robots Rewired 2 | . . . . . . . . . . . . . . . . . 2 . . . . . . . Allies Hacked . | . . . . . . . . . . . . . . . . . . . . . . . . . Hacks Repelled . | . . . . . . . . . . . . . . . . . . . . . . . . . Allies | -11 -10 -9 -9 -8 -8 -8 -8 -6 -6 -6 -6 -5 -5 -5 -5 -5 -4 -4 -4 -4 -4 -3 -3 -2 -------- Run | Yrd Mat Mat Min Mat Sto Rec Scr Fac Low Low Dat Pro Fac Upp Upp Zhi Pro Fac Upp Upp War Pro Res Res Total Allies 7 | . . . . . 2 . . . . . . . 1 1 . . 3 . . . . . . . Largest Group 2 | . . . . . 2 2 1 . . . . . 1 1 . . 2 . . . . . . . Highest-Rated Group 80 | . . . . . 62 62 31 . . . . . 10 80 . . 79 . . . . . . . Highest-Rated Ally 80 | . . . . . 31 31 31 . . . . . 10 80 . . 49 . . . . . . . Total Orders 2 | . . . . . . . . . . . . . 1 . . . 1 . . . . . . . RETURN 2 | . . . . . . . . . . . . . 1 . . . 1 . . . . . . . Ally Attacks 37 | . . . . . . 6 . . . . . . 10 1 . . 20 . . . . . . . Total Damage 839 | . . . . . . 125 . . . . . . 56 4 . . 654 . . . . . . . Kills 8 | . . . . . . 3 . . . . . . . . . . 5 . . . . . . . Allies Corrupted 1 | . . . . . . . . . . . . . 1 . . . . . . . . . . . Allies Melted . | . . . . . . . . . . . . . . . . . . . . . . . . . Intel | -11 -10 -9 -9 -8 -8 -8 -8 -6 -6 -6 -6 -5 -5 -5 -5 -5 -4 -4 -4 -4 -4 -3 -3 -2 ------- Run | Yrd Mat Mat Min Mat Sto Rec Scr Fac Low Low Dat Pro Fac Upp Upp Zhi Pro Fac Upp Upp War Pro Res Res Active Infowar (turns) 17524 | 50 587 1623 150 145 126 44 . 1798 530 272 106 365 2315 573 521 308 1299 1127 1229 1003 1147 654 1475 77 Sensors 14234 | . . . . . 126 44 . 1798 530 272 106 365 1871 553 521 308 1299 1097 1224 981 1067 652 1420 . Terrain 5022 | . . . . . . . . 103 . . . . . . . . . 667 1197 1002 719 651 606 77 Seismic 2555 | 50 587 1623 150 145 . . . . . . . . . . . . . . . . . . . . Machine Analysis 3028 | . . . . . . . . . . . . . 2285 317 . . . 426 . . . . . . Cloaking 2010 | . . . . . . . . . . . . . . . . . . . . . 88 654 1246 22 Robot Analysis Total 16 | . . 2 . 1 1 . 7 1 . . . . . . . 4 . . . . . . . . Derelict Logs Recovered 9 | . . . 1 . . . . . 1 . . . . 2 1 . 2 . 1 1 . . . . Drone Launches 15 | . . . . . . . . . . . . . 11 1 . . 3 . . . . . . . Drone Recoveries 9 | . . . . . . . . . . . . . 6 1 . . 2 . . . . . . . Exploration | -11 -10 -9 -9 -8 -8 -8 -8 -6 -6 -6 -6 -5 -5 -5 -5 -5 -4 -4 -4 -4 -4 -3 -3 -2 ------------- Run | Yrd Mat Mat Min Mat Sto Rec Scr Fac Low Low Dat Pro Fac Upp Upp Zhi Pro Fac Upp Upp War Pro Res Res Turns Passed 26013 | 180 587 1968 934 765 1485 770 2266 2450 630 299 106 365 2328 607 555 308 1739 1240 1330 1038 1158 654 2094 157 Spaces Moved 15009 | 72 292 1286 611 351 693 511 1672 1447 447 198 81 195 1250 343 338 181 722 635 793 660 701 397 964 169 Core 320 | 8 . . . . . . 190 . . . . . . . . . . . . . . . . 122 Treads 276 | 31 . 39 12 15 19 . . 26 . . . . . . 2 . 77 . . . . . 55 . Legs . | . . . . . . . . . . . . . . . . . . . . . . . . . Wheels 14404 | 33 292 1247 599 336 674 511 1482 1421 447 198 81 195 1250 343 336 181 636 635 793 660 701 397 909 47 Hover . | . . . . . . . . . . . . . . . . . . . . . . . . . Flight 9 | . . . . . . . . . . . . . . . . . 9 . . . . . . . Fastest Speed 50 | 50 80 95 110 110 110 125 50 109 109 109 109 109 108 135 122 150 122 119 119 119 136 136 119 50 Average Speed 131 | 120 92 107 116 113 129 145 131 122 131 134 121 132 134 157 143 151 185 139 125 135 136 136 145 77 Slowest Speed 655 | 160 125 240 240 240 400 155 155 200 135 135 135 135 275 165 243 205 655 215 200 136 158 136 305 230 Overloaded Moves . | . . . . . . . . . . . . . . . . . . . . . . . . . Propulsion Burnouts . | . . . . . . . . . . . . . . . . . . . . . . . . . Robots Hopped . | . . . . . . . . . . . . . . . . . . . . . . . . . Potential Cave-ins . | . . . . . . . . . . . . . . . . . . . . . . . . . Cave-ins Triggered 1 | . . . . . . . . . . . . . . 1 . . . . . . . . . . Exploration Rate (%) 57 | 7 37 94 99 31 93 97 90 42 68 47 68 40 21 61 60 59 76 13 76 78 80 67 23 10 Regions Visited 24 Branch Regions 16 Pre-discovered Areas 10 | . . . . . . . 3 1 1 . 1 . . . . 3 1 . . . . . . . Known Exits Taken 18 | . . 1 . 1 . . . 1 1 1 1 1 1 1 1 1 1 1 1 1 1 1 1 . Unknown Exits Taken 6 | 1 1 . 1 . 1 1 1 . . . . . . . . . . . . . . . . . Scrap Searched 22 | . . . 1 . . . 7 . 1 3 . . . . 1 . 2 . 3 3 . 1 . . Spaces Dug 147 | . . . . . 9 . . 28 1 1 . 4 42 3 . . . 17 3 1 . 3 34 1 Terrain Destroyed 792 | . . 92 94 . 52 . . 54 1 1 . 4 83 28 48 . 144 24 18 7 20 3 118 1 Melee 137 | . . . . . 9 . . 24 1 1 . 2 42 3 . . . 17 3 1 . 3 30 1 Projectile 181 | . . 1 . . 2 . . 8 . . . 2 31 3 12 . 13 7 15 6 20 . 61 . AOE 473 | . . 91 94 . 41 . . 21 . . . . 10 22 36 . 131 . . . . . 27 . Terrain Rammed . | . . . . . . . . . . . . . . . . . . . . . . . . . Walls Destroyed . | . . . . . . . . . . . . . . . . . . . . . . . . . Machines Disabled . | . . . . . . . . . . . . . . . . . . . . . . . . . Actions | -11 -10 -9 -9 -8 -8 -8 -8 -6 -6 -6 -6 -5 -5 -5 -5 -5 -4 -4 -4 -4 -4 -3 -3 -2 --------- Run | Yrd Mat Mat Min Mat Sto Rec Scr Fac Low Low Dat Pro Fac Upp Upp Zhi Pro Fac Upp Upp War Pro Res Res Total 19465 | 114 572 1704 733 652 1140 530 1756 1867 482 220 89 288 1651 377 376 212 1022 895 1083 762 852 504 1396 188 Wait 2273 | . 239 220 29 216 264 5 . 162 5 6 1 75 179 4 7 . 157 87 228 67 65 99 157 1 Move 14985 | 71 291 1285 610 350 692 510 1671 1446 446 197 80 194 1249 342 337 180 721 634 792 659 700 396 963 169 Hop . | . . . . . . . . . . . . . . . . . . . . . . . . . Pick Up 208 | 7 6 27 10 6 13 6 32 17 3 1 1 1 12 . 1 1 9 17 4 5 9 . 19 1 Fast Attach 178 | 7 8 7 2 4 12 . 7 23 6 2 3 . 7 . . 12 11 22 8 2 17 . 16 2 Attach 95 | 2 1 5 8 1 3 . 1 10 4 . . . 6 1 1 2 12 8 1 4 1 . 20 4 Detach 19 | . . . 2 1 2 . . 2 1 . . . . . . 2 2 4 1 . . . 2 . Swap 373 | 1 4 48 10 15 29 5 5 34 7 6 . 9 42 12 9 1 23 25 19 5 11 4 48 1 Drop 298 | 2 6 25 10 9 25 2 39 29 6 3 4 1 15 1 1 12 5 40 12 3 26 1 19 2 Fire 690 | 24 17 87 52 50 76 2 . 59 3 4 . 5 78 8 20 . 40 23 10 15 23 . 90 4 Melee 302 | . . . . . 24 . . 82 1 1 . 3 63 9 . 2 5 35 8 2 . 4 62 1 Ram 3 | . . . . . . . . 1 . . . . . . . . . . . . . . . 2 Kick . | . . . . . . . . . . . . . . . . . . . . . . . . . Crush . | . . . . . . . . . . . . . . . . . . . . . . . . . Escape Stasis . | . . . . . . . . . . . . . . . . . . . . . . . . . Rewire 38 | . . . . . . . 1 . . . . . . . . . 37 . . . . . . . Trap 3 | . . . . . . . . 2 . . . . . . . . . . . . . . . 1 Miscellaneous . | . . . . . . . . . . . . . . . . . . . . . . . . . Route ------- -11/Scrapyard -10/Materials (discovered 2 exits: *Mat x2) -9/Materials (discovered 4 exits: *Mat x3 / *Min) -9/Mines (discovered 3 exits: *Mat x2 / *Exi) -8/Materials (discovered 2 exits: *Sto x2) -8/Storage (discovered 2 exits: [*Fac] / *Rec) -8/Recycling (discovered 2 exits: *Fac / *Scr) -8/Scraptown (discovered 2 exits: *Fac x2) -6/Factory (discovered 3 exits: *Low x2 / [*Ext]) -6/Lower Caves -6/Lower Caves (discovered 2 exits: Fac / *Dat) -6/Data Miner -5/Proximity Caves -5/Factory (discovered 2 exits: *Fac / *Upp) -5/Upper Caves -5/Upper Caves (discovered 2 exits: Fac / *Zhi) -5/Zhirov -4/Proximity Caves -4/Factory (discovered 2 exits: *Upp / Arm) -4/Upper Caves -4/Upper Caves -4/Warlord -3/Proximity Caves -3/Research (discovered 4 exits: *Res x3 / [*Tes]) -2/Research (discovered 2 exits: Qua x2) History --------- Turn | Location | Event 2 | -11/Scrapyard | Met Revision 17 31 | -11/Scrapyard | Discovered new exit (range 15) 181 | -11/Scrapyard | Entered Materials 301 | -10/Materials | Build established: Mutant 442 | -10/Materials | Discovered new exit (range 8) 735 | -10/Materials | Discovered new exit (range 16) 768 | -10/Materials | Entered another Materials area 768 | -9/Materials | Evolved 2 slots: Propulsion x1, Weapon x1 797 | -9/Materials | Lost 3 parts (2n1w) 1039 | -9/Materials | Build established: Gunner 1458 | -9/Materials | Build established: Scavenger-Gunner 1462 | -9/Materials | Discovered new exit (range 16) 1721 | -9/Materials | Identified exit to Mines 1758 | -9/Materials | Discovered new exit (range 11) 2204 | -9/Materials | Discovered new exit (range 10) 2531 | -9/Materials | Central database locked down 2736 | -9/Materials | Entered Mines 2736 | -9/Mines | Discovered new exit (range 12) 2835 | -9/Mines | Build established: Gunner 2883 | -9/Mines | Assembled infested the area 2944 | -9/Mines | Core integrity fell below 50% 2987 | -9/Mines | Destroyed 15 combat bots 3245 | -9/Mines | Found a damaged Exp. Sensor Array with a note attached 3247 | -9/Mines | Found Prototype Device 3408 | -9/Mines | Identified exit to Exiles 3436 | -9/Mines | Deemed a non-threat by the Exiles lab entrance 3596 | -9/Mines | Discovered new exit (range 15) 3636 | -9/Mines | Found the Drone Emporium 3642 | -9/Mines | Found Prototype Device 3643 | -9/Mines | Identified Exp. Sensor Array 3644 | -9/Mines | Identified Splice Drone Bay 3670 | -9/Mines | Entered Materials 3670 | -8/Materials | Evolved 2 slots: Utility x2 3894 | -8/Materials | Build established: Scavenger-Gunner 4043 | -8/Materials | Discovered new exit (range 3) 4135 | -8/Materials | Identified exit to Storage 4275 | -8/Materials | Repaired Broken Exp. Sensor Array 4308 | -8/Materials | Repaired Imp. Treads 4435 | -8/Materials | Entered Storage 4595 | -8/Storage | Garrison activated, responded to threat 5001 | -8/Storage | Used back door to open Recycling access 5001 | -8/Storage | Discovered new exit (range 5) 5181 | -8/Storage | Discovered new exit (range 16) 5500 | -8/Storage | Repaired Arm. Wheel 5539 | -8/Storage | Repaired Hrd. Medium Armor Plating 5573 | -8/Storage | Repaired Arm. Wheel 5625 | -8/Storage | Repaired Imp. Assault Rifle 5664 | -8/Storage | Repaired Reflective Plating 5791 | -8/Storage | Met a pair of Derelict thieves 5920 | -8/Storage | Entered Recycling 5920 | -8/Recycling | Accompanied by 2 allies 6154 | -8/Recycling | Discovered new exit (range 16) 6256 | -8/Recycling | Build established: Scavenger-Tank 6335 | -8/Recycling | Scanned before Scraplab entrance 6668 | -8/Recycling | Entered Scraplab 6680 | -8/Recycling | Discovered new exit (range 4) 6690 | -8/Recycling | Entered Scraptown 6690 | -8/Scraptown | Accompanied by 1 ally 6987 | -8/Scraptown | Heard Great Nut preacher, LISTEN AND RECITE! 7069 | -8/Scraptown | Discovered new exit (range 5) 7202 | -8/Scraptown | Visited Cyclists 7440 | -8/Scraptown | Visited Awakened 7468 | -8/Scraptown | Visited TADAMA 7603 | -8/Scraptown | Visited CR-KLE's Repair Center 7626 | -8/Scraptown | Visited SPCMW 7643 | -8/Scraptown | Visited UFD Registry 7643 | -8/Scraptown | Registered with UFD as "Fibergrid" 7701 | -8/Scraptown | Visited Cartography Club 7785 | -8/Scraptown | Found Surveybot 17 Chip 7815 | -8/Scraptown | Learned location of Cetus (-6) 7815 | -8/Scraptown | Learned location of Hub_04(d) (-6) 7815 | -8/Scraptown | Learned 12 Factory zone layouts 7815 | -8/Scraptown | Learned 16 Research zone layouts 7815 | -8/Scraptown | Learned 16 Lower Caves zone layouts 7815 | -8/Scraptown | Learned 20 Lower Caves zone layouts 7815 | -8/Scraptown | Learned 12 Upper Caves zone layouts 7815 | -8/Scraptown | Learned 8 Proximity Caves zone layouts 7815 | -8/Scraptown | Learned 16 Proximity Caves zone layouts 7815 | -8/Scraptown | Learned 4 Hub_04(d) zone layouts 7815 | -8/Scraptown | Learned Materials emergency access door positions 7815 | -8/Scraptown | Learned location of 2 exits from Research 7815 | -8/Scraptown | Learned location of 3 exits from Upper Caves 7858 | -8/Scraptown | Found Deep Structural Scanner 7901 | -8/Scraptown | Visited DA-N13 Charitable Foundation 7920 | -8/Scraptown | Found DCF Scrap (31 items) 7963 | -8/Scraptown | Visited Research Penetration Think Tank 8006 | -8/Scraptown | Build established: Mutant 8062 | -8/Scraptown | Visited Curators Association 8081 | -8/Scraptown | Visited Scrap Suit Storage 8090 | -8/Scraptown | Found Scrap Suit 8114 | -8/Scraptown | Visited Analyses Database 8144 | -8/Scraptown | Visited Infowarlord's Domain 8151 | -8/Scraptown | Found Exp. Terrain Scanner 8289 | -8/Scraptown | Visited Science Guys 8351 | -8/Scraptown | Visited Scrapoid Research Area 8380 | -8/Scraptown | Visited Chapter 10 8396 | -8/Scraptown | Build established: Scrapper 8883 | -8/Scraptown | Met Optimus 8883 | -8/Scraptown | Accepted into 0bPrime 8953 | -8/Scraptown | Discovered new exit (range 3) 8956 | -8/Scraptown | Entered Factory 8956 | -6/Factory | Evolved 4 slots: Propulsion x2, Utility x2 8957 | -6/Factory | Identified exit to Lower Caves 9255 | -6/Factory | Build established: Derelict-Scrapper 9304 | -6/Factory | Discovered exit to Lower Caves (range 9) 9765 | -6/Factory | Loaded intel: 8 recycling unit locations 10193 | -6/Factory | Learned location of Protoforge (-2) 10960 | -6/Factory | Lost 3 parts (1n1u1w) 11151 | -6/Factory | Build established: Mutant 11161 | -6/Factory | Discovered new exit (range 15) 11406 | -6/Factory | Entered Lower Caves 11407 | -6/Lower Caves | Identified exit to Lower Caves 11424 | -6/Lower Caves | Found Alien Artifact 11424 | -6/Lower Caves | Identified Core Expander 11424 | -6/Lower Caves | Installed Core Expander, added new Propulsion slot 11609 | -6/Lower Caves | Attracted the attention of an 0b10 checkpoint 11755 | -6/Lower Caves | Learned location of Extension (-6) 12036 | -6/Lower Caves | Entered another Lower Caves area 12037 | -6/Lower Caves | Identified exit to Data Miner 12037 | -6/Lower Caves | Identified exit to Factory 12245 | -6/Lower Caves | Attracted the attention of an 0b10 checkpoint 12335 | -6/Lower Caves | Encountered a Warlord checkpoint 12335 | -6/Lower Caves | Entered Data Miner 12335 | -6/Data Miner | Discovered new exit (range 6) 12360 | -6/Data Miner | Met Data Miner 12393 | -6/Data Miner | Learned location of Section 7 (-2) 12393 | -6/Data Miner | Acquired the access code to Warlord's prototype stash 12402 | -6/Data Miner | Received God Mode back door access code from Data Miner 12440 | -6/Data Miner | Identified exit to Proximity Caves 12441 | -6/Data Miner | Entered Proximity Caves 12797 | -5/Proximity Caves | Build established: Skirmisher 12806 | -5/Proximity Caves | Entered Factory 12806 | -5/Factory | Evolved 2 slots: Power x1, Utility x1 12847 | -5/Factory | Repaired Arm. Huge Wheel 13190 | -5/Factory | Discovered new exit (range 12) 13246 | -5/Factory | Identified exit to Upper Caves 13365 | -5/Factory | Loaded intel: 7 recycling unit locations 13750 | -5/Factory | Lost 3 allies 14494 | -5/Factory | Build established: Scavenger-Assassin 14657 | -5/Factory | Discovered new exit (range 16) 14675 | -5/Factory | Identified exit to Factory 14825 | -5/Factory | Garrison activated, responded to threat 15071 | -5/Factory | Incoming investigation squad redirected 15134 | -5/Factory | Entered Upper Caves 15135 | -5/Upper Caves | Identified exit to Upper Caves 15309 | -5/Upper Caves | Learned Factory garrison access intel 15352 | -5/Upper Caves | Crushed by falling debris 15459 | -5/Upper Caves | Spotted B-75 Beast 15481 | -5/Upper Caves | Encountered a Warlord checkpoint 15631 | -5/Upper Caves | Learned Factory emergency access door positions 15741 | -5/Upper Caves | Entered another Upper Caves area 15742 | -5/Upper Caves | Identified exit to Zhirov 15783 | -5/Upper Caves | Build established: Scavenger-Mutant 15812 | -5/Upper Caves | Encountered a Warlord checkpoint 15900 | -5/Upper Caves | Attracted the attention of an 0b10 checkpoint 16190 | -5/Upper Caves | Build established: Scavenger-Gunner 16296 | -5/Upper Caves | Entered Zhirov 16296 | -5/Zhirov | Discovered new exit (range 3) 16325 | -5/Zhirov | Met Zhirov 16352 | -5/Zhirov | Learned location of Quarantine (-2) 16352 | -5/Zhirov | Learned location of Testing (-3) 16352 | -5/Zhirov | Learned location of Command (-1) 16366 | -5/Zhirov | Zhirov requested help retrieving the SGEMP Prototype 16395 | -5/Zhirov | Found Alien Artifact 16395 | -5/Zhirov | Identified Integrated Reactor 16395 | -5/Zhirov | Installed Integrated Reactor, increased core energy generation (+10) 16603 | -5/Zhirov | Identified exit to Proximity Caves 16604 | -5/Zhirov | Entered Proximity Caves 16638 | -4/Proximity Caves | Learned location of 1 exit from Upper Caves 16746 | -4/Proximity Caves | Spotter reported a threat 16750 | -4/Proximity Caves | Attracted the attention of an 0b10 outpost 16786 | -4/Proximity Caves | Destroyed 7 combat bots 17008 | -4/Proximity Caves | Lost 13 parts (2p4n4u3w) 17047 | -4/Proximity Caves | Spotter reported a threat 17397 | -4/Proximity Caves | Build established: Scavenger-Mutant 18146 | -4/Proximity Caves | Build established: Scavenger-Tank 18179 | -4/Proximity Caves | Received a Behemoth hack from an annoying Tinkerer 18270 | -4/Proximity Caves | Discovered exit to Factory (range 7) 18343 | -4/Proximity Caves | Entered Factory 18343 | -4/Factory | Evolved 2 slots: Utility x2 18344 | -4/Factory | Identified exit to Armory 18346 | -4/Factory | Loaded intel: 4 garrison access locations 18703 | -4/Factory | Found Hvy. Reflective Plating 18711 | -4/Factory | Discovered new exit (range 29) 18785 | -4/Factory | Build established: Scavenger-Assassin 18938 | -4/Factory | Identified exit to Upper Caves 19421 | -4/Factory | Loaded intel: 8 recycling unit locations 19566 | -4/Factory | Build established: Scavenger-Mutant 19583 | -4/Factory | Entered Upper Caves 19584 | -4/Upper Caves | Identified exit to Upper Caves 19900 | -4/Upper Caves | Build established: Scavenger-Assassin 20651 | -4/Upper Caves | Learned 8 Research zone layouts 20913 | -4/Upper Caves | Entered another Upper Caves area 20998 | -4/Upper Caves | Build established: Scavenger-Skirmisher 21163 | -4/Upper Caves | Attracted the attention of an 0b10 outpost 21225 | -4/Upper Caves | Destroyed 8 combat bots 21237 | -4/Upper Caves | Lost 3 parts (3u) 21325 | -4/Upper Caves | Discovered new exit (range 29) 21546 | -4/Upper Caves | Build established: Scavenger-Assassin 21950 | -4/Upper Caves | Identified exit to Warlord 21951 | -4/Upper Caves | Entered Warlord 21952 | -4/Warlord | Identified exit to Proximity Caves 21998 | -4/Warlord | System corruption cleaned by Quarantine Array 22054 | -4/Warlord | Found Prototype Special Weapon 22054 | -4/Warlord | Identified RU-N14's Throwing Claymores v3 22062 | -4/Warlord | Found RU-N14's Throwing Claymores v3 22065 | -4/Warlord | Found RU-N14's Throwing Claymores v3 22068 | -4/Warlord | Found RU-N14's Throwing Claymores v3 22229 | -4/Warlord | Visited the Vortex Lab 22243 | -4/Warlord | Warlord's base attacked by MAIN.C 22247 | -4/Warlord | Found Prototype Energy Cannon 22248 | -4/Warlord | Identified Vortex Cannon 22252 | -4/Warlord | Found Prototype Energy Cannon 22253 | -4/Warlord | Identified Vortex Driver 22259 | -4/Warlord | Found Prototype Energy Gun 22259 | -4/Warlord | Identified Vortex Shotgun 22265 | -4/Warlord | Found Vortex Shotgun 22482 | -4/Warlord | Opened Warlord's prototype stash 22491 | -4/Warlord | Found Prototype Device 22491 | -4/Warlord | Identified Exp. Cloaking Device 22527 | -4/Warlord | Found Prototype Processor 22527 | -4/Warlord | Identified Exp. Target Analyzer 22540 | -4/Warlord | Found Prototype Reactor 22540 | -4/Warlord | Identified Vortex Chain Reactor 22588 | -4/Warlord | Rebuked by Warlord 22593 | -4/Warlord | Warlord forces counterattacked 22677 | -4/Warlord | Lost 3 allies 22679 | -4/Warlord | Spotted Executioner 22683 | -4/Warlord | Destroyed Executioner 22705 | -4/Warlord | Spotted Executioner 22709 | -4/Warlord | Destroyed Executioner 22736 | -4/Warlord | Spotted Striker 22813 | -4/Warlord | Lost 20 allies 22879 | -4/Warlord | Spotted Striker 22917 | -4/Warlord | Spotted Striker 22918 | -4/Warlord | Warlord base infiltrated, sounded retreat 22967 | -4/Warlord | Build established: Tank 22984 | -4/Warlord | Lost 5 allies 23082 | -4/Warlord | Spotted Executioner 23109 | -4/Warlord | Entered Proximity Caves 23120 | -3/Proximity Caves | Lost 6 allies 23399 | -3/Proximity Caves | Spotted B-86 Titan 23524 | -3/Proximity Caves | Discovered new exit (range 25) 23689 | -3/Proximity Caves | Build established: Assassin 23762 | -3/Proximity Caves | Identified exit to Research 23763 | -3/Proximity Caves | Entered Research 23763 | -3/Research | Evolved 2 slots: Utility x2 23764 | -3/Research | Identified exit to Research 24306 | -3/Research | Discovered new exit (range 24) 24692 | -3/Research | Loaded intel: 5 recycling unit locations 24695 | -3/Research | Build established: Scavenger-Mutant 24926 | -3/Research | Destroyed 9 combat bots 24977 | -3/Research | Lost 8 parts (3n4u1w) 25266 | -3/Research | Fabricated Biometal Medium Treads? 25652 | -3/Research | Lost 3 parts (1n2u) 25687 | -3/Research | Core integrity fell below 50% 25771 | -3/Research | Core integrity fell below 20% 25857 | -3/Research | Entered another Research area 25857 | -2/Research | Evolved 2 slots: Propulsion x1, Utility x1 25858 | -2/Research | Identified exit to Quarantine 25885 | -2/Research | Lost 8 parts (1p3n4u) 25889 | -2/Research | Loaded intel: 5 recycling unit locations 25912 | -2/Research | Incoming investigation squad redirected 25962 | -2/Research | Found Prototype Processor 25962 | -2/Research | Identified Exp. Core Analyzer 25970 | -2/Research | Core integrity fell below 50% 25972 | -2/Research | System corruption reached 10% 25980 | -2/Research | Incoming investigation squad redirected 25988 | -2/Research | Core integrity fell below 20% 25993 | -2/Research | Spotted B-90 Cyclops 25998 | -2/Research | Repaired Adv. Heavy Siege Treads? 26006 | -2/Research | Lost 14 parts (2p2n6u4w) 26014 | -2/Research | Destroyed by P-80 Master with Gamma Rifle Last Messages --------------- 25966_ Recycling Unit disabled. 25966_ Antigrav Array tumbles out of recycling unit. 25972_ P-80 Master resets P-80 Master, system corruption cleaned. 25975_ Adv. System Shield destroyed. 25980_ ALERT: Higher priority target reported, redirecting investigation. 25980_ Penetrated by Slug. 25984_ Slug penetrates Wall. 25985_ Slammed into A-15 Conveyor. 25989_ 9A,R FTGM53OB=F0BF3<3JNNW9KQ|F7| 25995_ Fabricator disabled. 25998_ >> REPAIR: Completed Adv. Heavy Siege Treads? 26000_ B-90 Cyclops activates siege mode. 26011_ ALERT: Potential suspicious activity detected, Programmers report to Research Zone 4P. [Achievement: I Was Wrong!] Map ----- +----------------------------------------------------+ | ?????????????????????????????????????????????????? | | ?????????????????????????????????????????????????? | | ?????????????????????????????????????????????????? | | ?????????????????????????????????????????????????? | | ?????????????????????????????????????????????????? | | ?????????????????????????????????????????????????? | | ?????????????????????????????????????????????????? | | ?????????????????????????????????????????????????? | | ?????????????????????????????????????????????????? | | ?????????????????????????????????????????????????? | | ??????????????????????? ?????????????????????? | | ??????????????????????? #????????????????????? | | ??????????????????????? #????????????????????? | | ??????????????????????? #???????????###??????? | | ???????????????????????#k #??????????? #?????? | | ???????????????????????# #??????????? #?????? | | ???????????????????????# #??????????? #?????? | | ???????????????????????# #??????????? #??? ?? | | ???????????????????????# #?????????? #??? ?? | | ???????????????????????# #??????????? #??? "" | | ???????????????????????# +??????????? #??? "" | | ???????????????????????# R #??????????? ]#??? | | ???????????????????????# #??????????? ???? | | ???????????????????????# #############+######+# | | ???????????????????????# k k k | | ???????????????????????# @ | | ???????????????????????# | | ???????????????????????# k p """ ! | | ???????????????????????####+############ """ ] | | ????????????????????????? ?????????# """ | | ??????????????????????? ???????# | | ??????????????????????# | """#??????# ! | | ??????????????????????# R"#??????# | | ??????????????????????# ! """#??????#+######### | | ??????????????????????# #?????# ????????? | | ??????????????????????#! ! ??????# ????????? | | ??????????????????????# = #?????# ????????? | | ??????????????????????###########?????# ????????? | | ??????????????????????????????????????# ????????? | | ??????????????????????????????????????# ????????? | | ??????????????????????????????????????# ????????? | | ??????????????????????????????????????# ?????????? | | ??????????????????????????????????????# ?????????? | | ??????????????????????????????????????# ?????????? | | ??????????????????????????????????????# ?????????? | | ?????????????????????????????????????????????????? | | ?????????????????????????????????????????????????? | | ?????????????????????????????????????????????????? | | ?????????????????????????????????????????????????? | | ?????????????????????????????????????????????????? | +----------------------------------------------------+ Best States ------------- Heat Dissipation 84 Energy Generation 80 Energy Capacity 700 Matter Stores 417 Matter Capacity 800 Sight Range 16 Robot Scan Range 20 Terrain Scan Range 30 Terrain Scan Density 1210 Cloak Strength 4 Power Amplification 30 Corruption Block 4 Armor Coverage 1650 Resistance: KI 30 Resistance: TH 25 Weapon Shielding 66 Weapon Cycling 30 Phase Shifting 5 Evasion (%) 50 Target Analysis 14 Armor Integrity Analysis 40 Recoil Reduction 10 Kinecelleration 40 Offensive Hacking 20 Defensive Hacking 14 Item Schematics ----------------- Arm. Wheel | -9/Materials | Scanalyzed Reflective Plating | -9/Materials | Scanalyzed Huge Storage Unit | -9/Materials | Scanalyzed Combat Drone Bay | -6/Data Miner | Free Lgt. Regenerative Plating | -6/Data Miner | Free Cld. Gravmag System | -6/Data Miner | Free Imp. KE Penetrator | -6/Data Miner | Free Prc. Energy Filter | -6/Data Miner | Free Imp. Gyrokinetic Inverter | -6/Data Miner | Free Adv. Particle Charger | -6/Data Miner | Free Hvy. Gauss Cannon | -6/Data Miner | Free Biometal Medium Treads | -6/Data Miner | Free Imp. Heavy Siege Treads | -6/Data Miner | Free Assault Drone Bay | -5/Zhirov | Free Exp. Heat Sink | -5/Zhirov | Free Exp. Optical Array | -5/Zhirov | Free Imp. Arc Thrower | -5/Zhirov | Free Cld. Nuclear Pulse Thruster | -4/Factory | Scanalyzed Enh. Hardcell Cannon | -3/Research | Hacked Robot Schematics ------------------ B-60 Warrior | -6/Data Miner | Free S-27 Virus | -6/Data Miner | Free Y-64 Sentinel | -6/Data Miner | Free R-10 Processor | -6/Data Miner | Free A-15 Conveyor | -6/Data Miner | Free Fabricated ------------ Biometal Medium Treads | x2 | -3/Research Repaired ---------- Exp. Sensor Array | 62% | -8/Materials | Broken Imp. Treads | 39% | -8/Materials Arm. Wheel | 51% | -8/Storage Hrd. Medium Armor Plating | 74% | -8/Storage Arm. Wheel | 65% | -8/Storage Imp. Assault Rifle | 35% | -8/Storage Reflective Plating | 90% | -8/Storage Arm. Huge Wheel | 50% | -5/Factory Adv. Heavy Siege Treads | 29% | -2/Research Alien Tech Used ----------------- Core Expander Integrated Reactor Achievements -------------- I Was Wrong! Challenges ------------ None Game ------ Seed WeldingBombardmentFragment Manual? 0 Play Time 05:18:50 Cumulative 399.6 hours Start 2025.06.23 @ 16:01:36 End 2025.06.30 @ 15:53:31 Sessions 13 Manual Loads 0 Difficulty Rogue Special Mode None Game No. 439 Rogue 439 Adventurer 0 Explorer 0 Win Type - Total 6 Types 3/1/1/1/0/0/0/0/0/0 Lore% 75 Gallery% 72 Achievement% 69 Wizard Run 0 Options --------- Layout 1 ASCII 0 Keyboard 0 Movement Numpad Keybinds 0 Fullscreen 1 Font 32/SmallcapsGlow Map View 50x35 Zoom Use 0% Tactical HUD 1 Map Filters NONE Filters NONE Steam 1 RUN: d8e78e47-c6ee-4a03-bbf6-e602fc6fea4d